bitfinex/quotes_ETHUSD_20251025
["timestamp","ask_amount","ask_price","bid_price","bid_amount"]
[1761408095253,0.94520002,3933.4,3933.3,3.71388]
[1761408095451,0.94520002,3933.4,3933.3,3.207]
[1761408095887,0.94520002,3933.4,3933.3,3.71388]
[1761408098486,0.94520002,3933.4,3933.3,6.25627442]
[1761408098846,0.94520002,3933.4,3933.3,5.74939442]
[1761408099046,0.94520002,3933.4,3933.3,6.25627442]
[1761408100246,0.94520002,3933.4,3933.3,3.71388]
[1761408108292,0.94520002,3933.4,3933.3,3.71488]
[1761408110104,0.47210001,3933.4,3933.3,3.71488]
[1761408117119,0.47210001,3933.4,3933.3,3.71388]
[1761408117319,0.47210001,3933.4,3933.3,0.50888]
[1761408117650,0.47210001,3933.4,3933.3,3.71388]
[1761408121831,0.78655498,3933.4,3933.3,0.50888]
[1761408122032,0.47210001,3933.4,3933.3,3.71388]
[1761408122253,0.59930001,3933.4,3933.3,3.71388]
[1761408123752,3.1416298,3933.4,3933.3,0.50888]
[1761408124150,3.1416298,3933.4,3933.3,3.71388]
[1761408124324,3.71031487,3933.4,3933.3,3.71388]
[1761408124726,1.16798508,3933.4,3933.3,3.71388]
[1761408125162,3.71031487,3933.4,3933.3,3.71388]
[1761408125363,1.16798508,3933.4,3933.3,3.71388]
[1761408126551,3.71031487,3933.4,3933.3,3.71388]
[1761408128772,5.26551487,3933.4,3933.3,3.71388]
[1761408130778,5.26551487,3933.4,3933.3,0.50888]
[1761408130970,5.26551487,3933.4,3933.3,0.002]
[1761408131136,5.26551487,3933.4,3933.3,2.506]
[1761408131337,5.26551487,3933.4,3933.3,3.01288]
[1761408140079,5.26551487,3933.4,3933.3,0.002]
[1761408141251,5.81323722,3933.4,3933.3,0.002]
[1761408142385,6.32011722,3933.4,3933.3,0.002]
[1761408144764,8.99711722,3933.4,3933.3,0.002]
[1761408145082,6.32011722,3933.4,3933.3,0.002]
[1761408145400,6.31938325,3933.4,3933.3,0.002]
[1761408145804,9.68011872,3933.4,3933.3,0.002]
[1761408146270,8.99638325,3933.4,3933.3,0.002]
[1761408146477,9.67990744,3933.4,3933.3,0.002]
[1761408147908,8.99638325,3933.4,3933.3,0.002]
[1761408148584,12.20138325,3933.4,3933.3,0.002]
[1761408150728,15.90438325,3933.4,3933.3,0.002]
[1761408156095,3.78520325,3933.4,3933.3,0.002]
[1761408156310,2.6695298,3933.4,3933.3,0.002]
[1761408156598,4.2247298,3933.4,3933.3,0.002]
[1761408157402,2.6695298,3933.4,3933.3,0.002]
[1761408164656,2.6695298,3933.4,3933.3,0.94178]
[1761408166521,4.2247298,3933.4,3933.3,0.94178]
[1761408167154,4.2247298,3933.4,3933.3,0.50888]
[1761408169053,4.2247298,3933.4,3933.3,0.94178]
[1761408170134,4.2247298,3933.4,3933.3,0.50888]
[1761408173531,4.2247298,3933.4,3933.3,0.94178]
[1761408173770,4.2247298,3933.4,3933.3,0.50888]
[1761408175447,4.2247298,3933.4,3933.3,0.94178]
[1761408177872,4.2247298,3933.4,3933.3,0.50888]
[1761408178079,4.2247298,3933.4,3933.3,0.94178]
[1761408179973,4.2247298,3933.4,3933.3,0.50888]
[1761408180679,4.2247298,3933.4,3933.3,0.98118]
[1761408181954,4.2247298,3933.4,3933.3,0.50888]
[1761408182165,5.37392299,3933.4,3933.3,3.71288]
[1761408183458,4.2247298,3933.4,3933.3,3.71288]
[1761408185369,4.77356605,3933.4,3933.3,3.71288]
[1761408193418,4.2247298,3933.4,3933.3,3.71288]
[1761408195417,4.2247298,3933.4,3933.3,4.18738]
[1761408195418,1e-08,3933.4,3933.3,4.18738]
[1761408195620,2.5423298,3933.4,3933.3,3.71288]
[1761408195922,4.0975298,3933.4,3933.3,3.71288]
[1761408196406,1.55520001,3933.4,3933.3,3.71288]
[1761408196615,1.55520001,3933.4,3933.3,4.18738]
[1761408196916,4.0975298,3933.4,3933.3,4.18738]
[1761408197621,1.55520001,3933.4,3933.3,4.18738]
[1761408204319,1.55520001,3933.4,3933.3,3.71288]
[1761408204526,1.55520001,3933.4,3933.3,4.18738]
[1761408205025,1.55520001,3933.4,3933.3,3.71288]
[1761408205225,2.02250001,3933.4,3933.3,3.71288]
[1761408208418,1.55520001,3933.4,3933.3,3.71288]
[1761408217823,1e-08,3933.4,3933.3,3.71288]
[1761408218221,1e-08,3933.4,3933.3,4.17548]
[1761408218416,1e-08,3933.4,3933.3,4.86000542]
[1761408218627,1e-08,3933.4,3933.3,4.98720542]
[1761408219139,1e-08,3933.4,3933.3,5.0889396]
[1761408220409,1e-08,3933.4,3933.3,1.8849396]
[1761408220615,1e-08,3933.4,3933.3,5.0869396]
[1761408224633,1e-08,3933.4,3933.3,4.6243396]
[1761408224837,1e-08,3933.4,3933.3,5.0869396]
[1761408226140,1e-08,3933.4,3933.3,0.73781418]
[1761408226308,1e-08,3933.4,3933.3,3.204]
[1761408226638,1e-08,3933.4,3933.3,3.71088]
[1761408227437,1e-08,3933.4,3933.3,0.50888]
[1761408227640,4.5380298,3933.4,3933.3,0.50888]
[1761408227858,5.37355939,3933.4,3933.3,3.71088]
[1761408232332,4.93305939,3933.4,3933.3,3.71088]
[1761408233353,5.37355939,3933.4,3933.3,3.71088]
[1761408233738,4.93305939,3933.4,3933.3,3.71088]
[1761408233936,5.37355939,3933.4,3933.3,3.71088]
[1761408236154,4.93305939,3933.4,3933.3,3.71088]
[1761408239360,2.3907296,3933.4,3933.3,3.71088]
[1761408239558,0.12720001,3933.4,3933.3,3.71088]
[1761408239758,0.12720001,3933.4,3933.3,4.17058]
[1761408240978,2.6695298,3933.4,3933.3,3.71088]
[1761408243444,3.1070298,3933.4,3933.3,0.50888]
[1761408243650,3.1070298,3933.4,3933.3,0.002]
[1761408243651,3.82777302,3933.4,3933.3,0.002]
[1761408243849,3.82777302,3933.4,3933.3,3.203]
[1761408244048,5.93153435,3933.4,3933.3,3.203]
[1761408244283,5.38297302,3933.4,3933.3,3.203]
[1761408244485,5.9313889,3933.4,3933.3,3.203]
[1761408244683,5.4938889,3933.4,3933.3,3.203]
[1761408244850,4.94547302,3933.4,3933.3,3.203]
[1761408245392,5.38297302,3933.4,3933.3,3.203]
[1761408246794,6.14623566,3933.4,3933.3,3.203]
[1761408253879,6.14623566,3933.4,3933.3,0.002]
[1761408256304,6.69437204,3933.4,3933.3,0.002]
[1761408256788,6.14623566,3933.4,3933.3,0.002]
[1761408261216,6.14623566,3933.4,3932.5,0.002]
[1761408261217,2.54284697,3932.6,3932.5,0.002]
[1761408261512,4.22524697,3932.6,3932.5,0.002]
[1761408261714,4.68944697,3932.6,3932.5,0.002]
[1761408261879,5.45288442,3932.6,3932.5,0.002]
[1761408268050,4.98868442,3932.6,3932.5,0.002]
[1761408268356,6.22553892,3932.6,3932.5,0.002]
[1761408270542,5.76133892,3932.6,3932.5,0.002]
[1761408279471,4.22524697,3932.6,3932.5,0.002]
[1761408280463,4.73212697,3932.6,3932.5,0.002]
[1761408280671,4.22524697,3932.6,3932.5,0.4448]
[1761408281061,4.22524697,3932.6,3932.5,0.002]
[1761408292097,4.65684697,3932.6,3932.5,0.002]
[1761408292693,4.22524697,3932.6,3932.5,0.002]
[1761408301317,4.65684697,3932.6,3932.5,0.002]
[1761408301614,5.47549962,3932.6,3932.5,0.002]
[1761408302018,6.5703063,3932.6,3932.5,0.002]
[1761408303016,6.1387063,3932.6,3932.5,0.002]
[1761408303817,5.32005365,3932.6,3932.5,0.002]
[1761408305122,4.77114697,3932.6,3932.5,0.002]
[1761408306429,4.22524697,3932.6,3932.5,0.002]
[1761408306640,4.22524697,3932.6,3932.5,0.93658]
[1761408306929,4.09804697,3932.6,3932.5,0.93658]
[1761408307513,1.5552,3932.6,3932.5,0.93658]
[1761408307904,4.09804697,3932.6,3932.5,0.93658]
[1761408308948,4.09804697,3932.6,3932.1,0.2303]
[1761408308949,5.59645051,3932.6,3932.1,0.022]
[1761408309166,2.54336436,3931.8,3931.7,0.002]
[1761408309456,8.32486691,3931.8,3931.7,0.002]
[1761408309802,7.87226691,3931.8,3931.7,0.002]
[1761408310003,6.21689927,3931.8,3931.7,0.002]
[1761408310201,6.66679927,3931.8,3931.7,0.002]
[1761408310629,6.21689927,3931.8,3931.7,0.002]
[1761408314237,5.66819672,3931.8,3931.7,0.002]
[1761408314614,3.00286436,3931.8,3931.7,0.002]
[1761408314937,2.54336436,3931.8,3931.7,0.4595]
[1761408315142,2.54327145,3932.0,3931.7,0.4595]
[1761408315348,1.5552,3931.9,3931.7,0.4595]
[1761408315509,4.09850535,3931.9,3931.7,0.4595]
[1761408315715,2.54330535,3931.9,3931.7,0.4595]
[1761408316652,1.5552,3931.8,3931.7,0.4595]
[1761408318919,0.1272,3931.8,3931.7,0.4595]
[1761408319753,0.76343551,3932.5,3931.7,0.4595]
[1761408319754,0.001,3933.3,3931.7,0.82795]
[1761408319913,0.001,3933.3,3931.9,0.1272]
[1761408319914,0.1272,3932.4,3931.9,0.1272]
[1761408320117,1.6824,3932.5,3931.9,0.1272]
[1761408320420,2.54307214,3932.3,3932.0,0.4575]
[1761408320641,1.5552,3932.3,3932.1,3.222]
[1761408320849,1.5552,3932.3,3931.9,0.1272]
[1761408320850,0.42254154,3932.3,3931.9,0.1272]
[1761408321024,2.67037031,3932.1,3932.0,3.222]
[1761408321225,4.22557031,3932.1,3932.0,3.222]
[1761408322330,4.22557031,3932.1,3932.0,3.6795]
[1761408322960,4.22557031,3932.1,3932.0,0.4575]
[1761408323262,4.22557031,3932.1,3932.0,3.6795]
[1761408323858,2.54329967,3931.9,3931.8,0.0811]
[1761408324025,4.09856436,3931.8,3931.7,0.002]
[1761408324234,4.09856436,3931.8,3931.7,0.889]
[1761408326132,4.09856436,3931.8,3931.7,0.002]
[1761408329063,0.1272,3931.9,3931.7,0.002]
[1761408329244,1.6824,3931.9,3931.8,0.4575]
[1761408330070,2.67049967,3931.9,3931.7,0.002]
[1761408330253,2.67049967,3931.9,3931.7,0.4595]
[1761408331074,4.09856436,3931.8,3931.7,0.4595]
[1761408331572,1.5552,3931.8,3931.7,0.4595]
[1761408337199,1.5552,3931.8,3931.7,0.82765]
[1761408338900,0.1272,3932.2,3931.7,0.82765]
[1761408339101,0.1272,3932.2,3932.1,0.0811]
[1761408339268,0.1272,3932.2,3932.1,3.3021]
[1761408339665,0.1272,3932.2,3932.1,3.221]
[1761408339888,4.22550564,3932.2,3932.1,3.221]
[1761408340197,1.6824,3932.2,3932.1,3.221]
[1761408341566,4.22550564,3932.2,3932.1,3.221]
[1761408343086,4.09838414,3932.1,3931.7,0.002]
[1761408343296,4.09838414,3932.1,3931.8,3.219]
[1761408344611,1.5552,3932.1,3931.8,3.219]
[1761408346210,1.5552,3932.1,3931.9,3.218]
[1761408346211,2.5432202,3932.1,3931.9,3.218]
[1761408346523,0.1272,3932.0,3931.9,3.218]
[1761408348224,0.1272,3932.0,3931.7,0.002]
[1761408348517,0.1272,3932.0,3931.8,3.217]
[1761408350643,1.6824,3932.0,3931.8,3.217]
[1761408351627,1.6824,3932.0,3931.7,0.002]
[1761408351628,4.22565621,3932.0,3931.7,0.002]
[1761408351810,3.11145621,3932.0,3931.8,3.217]
[1761408352005,0.1272,3932.0,3931.8,3.217]
[1761408353238,4.09856436,3931.8,3931.7,0.002]
[1761408353404,4.90266534,3931.8,3931.7,0.002]
[1761408353737,5.30896534,3931.8,3931.7,0.002]
[1761408354221,5.85744297,3931.8,3931.7,0.002]
[1761408358143,5.85744297,3931.8,3931.3,0.002]
[1761408358144,2.54362313,3931.4,3931.3,0.002]
[1761408358339,7.76633544,3931.4,3931.3,0.002]
[1761408358547,8.72045684,3931.4,3931.3,0.002]
[1761408358729,8.72045684,3931.4,3930.5,0.002]
[1761408358730,2.54375254,3931.2,3930.5,0.002]
[1761408358929,5.96451684,3931.2,3930.5,0.002]
[1761408359117,7.31750022,3931.2,3930.5,0.002]
[1761408359712,6.40588135,3931.2,3930.5,0.002]
[1761408359921,6.40588135,3931.2,3931.1,1e-08]
[1761408360135,6.91276135,3931.2,3931.1,1e-08]
[1761408360345,6.91276135,3931.2,3930.1,0.022]
[1761408360346,2.54439977,3930.2,3930.1,0.022]
[1761408360568,8.25999381,3930.2,3930.1,0.022]
[1761408360859,8.29872117,3930.2,3930.1,0.022]
[1761408361333,8.30272117,3930.2,3930.1,0.022]
[1761408362355,5.04972117,3930.2,3930.1,0.022]
[1761408362565,2.06017212,3930.2,3930.1,0.022]
[1761408362720,1.5552,3930.2,3930.1,0.022]
[1761408363049,2.54433678,3930.3,3930.1,0.022]
[1761408363257,1.5552,3930.4,3930.1,0.2397]
[1761408363460,3.8658,3931.0,3930.1,0.2397]
[1761408363658,1.5552,3930.9,3930.1,0.6842]
[1761408363809,1.5552,3930.9,3930.2,0.2177]
[1761408364017,2.54376502,3931.2,3930.2,0.6622]
[1761408364209,2.54382529,3931.1,3930.2,0.6622]
[1761408364413,4.09909424,3931.0,3930.3,0.4445]
[1761408364632,2.54381837,3931.1,3930.3,0.4445]
[1761408365114,1.5552,3931.1,3930.3,0.4445]
[1761408365513,2.54388196,3931.0,3930.3,0.4445]
[1761408365994,1.5552,3931.1,3930.2,0.2177]
[1761408366293,1.5552,3930.7,3930.3,0.4445]
[1761408366588,1.5552,3930.9,3930.3,0.4445]
[1761408366741,0.70203555,3931.9,3931.1,0.2177]
[1761408366934,2.54344195,3931.7,3931.1,0.2177]
[1761408367249,2.82147614,3931.7,3931.2,0.4445]
[1761408367450,0.27803419,3931.7,3931.2,0.4445]
[1761408367966,1.5552,3931.6,3931.2,0.4445]
[1761408368170,2.82146483,3931.7,3931.1,0.2177]
[1761408368171,0.1272,3931.3,3931.1,0.2177]
[1761408368380,0.1272,3931.3,3930.7,0.6691]
[1761408368563,0.4515,3931.6,3930.7,0.6691]
[1761408368764,0.1272,3930.9,3930.7,0.6691]
[1761408368952,0.1272,3930.9,3930.8,0.4514]
[1761408369883,0.1272,3930.9,3930.7,3.265]
[1761408370088,0.1272,3930.9,3930.7,3.7164]
[1761408370949,0.1272,3930.9,3930.8,0.4514]
[1761408371688,2.56334314,3931.9,3930.8,0.4514]
[1761408371689,0.1272,3931.1,3930.8,0.4514]
[1761408371900,0.02,3931.9,3930.8,0.4514]
[1761408372080,0.1272,3931.2,3930.8,0.4514]
[1761408373310,0.1272,3931.2,3930.7,3.265]
[1761408373484,0.4704,3931.1,3930.7,3.265]
[1761408373677,0.001,3931.0,3930.7,3.265]
[1761408373874,0.001,3931.0,3930.7,3.63664]
[1761408374074,0.001,3931.0,3930.8,0.4514]
[1761408374797,0.001,3931.0,3930.7,3.76384]
[1761408374997,2.71621139,3930.8,3930.7,3.265]
[1761408375197,2.5442703,3930.4,3930.3,0.002]
[1761408375576,0.1722,3930.8,3930.3,0.002]
[1761408375907,0.001,3931.0,3930.4,2.86]
[1761408376107,0.4711,3931.0,3930.4,2.86]
[1761408376310,3.01504633,3931.0,3930.4,2.86]
[1761408376475,2.54394707,3930.9,3930.4,2.86]
[1761408376877,3.01404707,3930.9,3930.4,2.86]
[1761408378976,0.001,3931.0,3930.4,2.86]
[1761408379195,0.4701,3930.8,3930.4,2.86]
[1761408379600,3.01411853,3930.8,3930.4,2.86]
[1761408380003,0.001,3931.0,3930.4,2.86]
[1761408380811,0.001,3931.0,3930.5,0.4514]
[1761408382621,0.001,3931.0,3930.5,2.99559908]
[1761408382826,0.001,3931.0,3930.6,0.58575991]
[1761408383015,0.001,3931.0,3930.6,1.03715991]
[1761408383329,0.001,3931.0,3930.7,0.4514]
[1761408383725,0.001,3931.0,3930.8,0.02544011]
[1761408383894,0.001,3931.0,3930.7,0.4514]
[1761408384095,0.001,3931.0,3930.8,0.35812512]
[1761408384532,0.001,3931.0,3930.9,0.4514]
[1761408385032,0.001,3931.0,3930.9,0.5786]
[1761408385928,0.001,3931.0,3930.9,3.8746]
[1761408388911,0.001,3931.0,3930.9,6.92542667]
[1761408389111,0.001,3931.0,3930.9,7.96676539]
[1761408390128,0.001,3931.0,3930.9,7.45988539]
[1761408390514,0.001,3931.0,3930.9,7.96676539]
[1761408390945,0.001,3931.0,3930.9,9.39476539]
[1761408391465,0.001,3931.0,3930.9,9.49653192]
[1761408391855,0.001,3931.0,3930.9,9.75093192]
[1761408395131,0.001,3931.0,3930.9,6.45493192]
[1761408395320,0.001,3931.0,3930.9,11.65093192]
[1761408396960,0.001,3931.0,3930.9,11.64893192]
[1761408397451,0.001,3931.0,3930.9,6.45493192]
[1761408397642,0.001,3931.0,3930.9,11.64693192]
[1761408398955,0.001,3931.0,3930.9,11.64493192]
[1761408401052,0.001,3931.0,3930.9,11.77213192]
[1761408404431,0.001,3931.0,3930.9,8.52238525]
[1761408404628,0.001,3931.0,3930.9,3.329]
[1761408405345,0.001,3931.0,3930.9,5.87294667]
[1761408405551,0.4317,3931.0,3930.9,3.83588]
[1761408405863,0.4317,3931.0,3930.4,0.002]
[1761408405864,0.001,3931.0,3930.5,2.544148]
[1761408406064,0.1786,3930.9,3930.6,3.328]
[1761408406241,0.1786,3930.9,3930.7,0.50688]
[1761408406440,0.6067,3930.9,3930.7,0.50688]
[1761408406643,0.6067,3930.9,3930.6,3.328]
[1761408406965,0.1786,3930.9,3930.6,3.328]
[1761408407184,0.4281,3930.8,3930.7,0.50688]
[1761408407386,0.4281,3930.8,3930.5,2.544148]
[1761408407681,0.4281,3930.8,3930.7,0.50688]
[1761408408961,0.001,3931.0,3930.7,0.50688]
[1761408409163,0.001,3931.0,3930.8,2.54399348]
[1761408409369,0.001,3931.0,3930.9,3.327]
[1761408410285,0.4291,3931.0,3930.9,3.327]
[1761408413098,0.4291,3931.0,3930.5,0.002]
[1761408413274,0.4291,3931.0,3930.6,2.87]
[1761408414069,0.4291,3931.0,3930.5,0.002]
[1761408414404,0.4291,3931.0,3930.7,3.321]
[1761408414570,0.31515039,3930.9,3930.7,3.321]
[1761408415101,0.1282,3931.0,3930.7,3.321]
[1761408415423,0.4281,3930.9,3930.7,3.321]
[1761408415571,1.5552,3930.7,3930.5,0.002]
[1761408415774,2.5440811,3930.7,3930.5,0.002]
[1761408415973,2.97224084,3930.6,3930.5,0.002]
[1761408416307,3.72219606,3930.6,3930.5,0.002]
[1761408417184,5.27739606,3930.6,3930.5,0.002]
[1761408423623,2.73325522,3930.6,3930.5,0.002]
[1761408424824,5.27739606,3930.6,3930.5,0.002]
[1761408424990,2.73325522,3930.6,3930.5,0.002]
[1761408425604,2.1105,3930.6,3930.5,0.002]
[1761408426327,0.1272,3930.6,3930.5,0.002]
[1761408428991,0.001,3931.0,3930.9,3.72208274]
[1761408429619,0.001,3931.0,3930.9,4.20352328]
[1761408431216,0.001,3931.0,3930.9,3.69664328]
[1761408432641,0.001,3931.0,3930.9,4.20352328]
[1761408435645,0.001,3931.0,3930.9,5.88592328]
[1761408437665,0.001,3931.0,3930.9,6.17087577]
[1761408437965,0.001,3931.0,3930.9,6.43443866]
[1761408438164,0.001,3931.0,3930.9,6.14948617]
[1761408439167,0.001,3931.0,3930.9,6.40388617]
[1761408441875,0.001,3931.0,3930.9,6.14032328]
[1761408442672,0.001,3931.0,3930.9,8.04732328]
[1761408442980,0.001,3931.0,3930.9,10.85844328]
[1761408443135,0.001,3931.0,3930.9,11.36532328]
[1761408443336,0.001,3931.0,3930.9,10.85844328]
[1761408444936,0.001,3931.0,3930.9,6.14032328]
[1761408445136,0.001,3931.0,3930.9,11.36432328]
[1761408449944,0.001,3931.0,3930.9,15.23432328]
[1761408450692,0.001,3931.0,3930.9,15.49788617]
[1761408452610,0.02,3931.9,3931.8,3.05024436]
[1761408452611,1e-08,3931.9,3931.8,3.05024436]
[1761408452808,1e-08,3931.9,3931.8,8.36894436]
[1761408453097,0.65000001,3931.9,3930.4,2.2863229]
[1761408453295,0.2171,3930.6,3930.4,2.2863229]
[1761408453497,0.2171,3930.6,3930.5,5.93420557]
[1761408453797,0.6742,3930.6,3930.5,5.93420557]
[1761408453996,0.6742,3930.6,3930.5,3.39]
[1761408454298,0.6742,3930.6,3930.5,5.93420557]
[1761408455495,0.2171,3931.0,3930.9,2.54394667]
[1761408455661,0.6742,3931.0,3930.9,5.92894667]
[1761408457387,0.211,3931.2,3931.0,3.050722]
[1761408457698,0.211,3931.2,3931.1,2.54381725]
[1761408458002,0.6741,3931.2,3931.1,2.54381725]
[1761408459506,0.6741,3931.2,3931.0,3.05074959]
[1761408459664,0.4631,3931.1,3931.0,3.05074959]
[1761408460288,0.211,3931.2,3931.1,2.54381725]
[1761408460470,0.6741,3931.2,3931.1,2.54381725]
[1761408460671,0.211,3931.2,3931.0,0.50688]
[1761408460871,0.4631,3931.1,3931.0,0.50688]
[1761408461295,0.4631,3931.1,3931.0,3.05076196]
[1761408462019,0.211,3931.2,3931.1,2.54381725]
[1761408462588,0.6741,3931.2,3931.1,2.54381725]
[1761408462909,0.4606,3931.2,3931.0,3.05076055]
[1761408463120,0.4606,3931.1,3931.0,3.05076196]
[1761408463575,0.4606,3931.1,3931.0,3.17796196]
[1761408466509,0.4606,3931.1,3931.0,0.63408]
[1761408466705,0.4606,3931.1,3931.0,3.17796196]
[1761408467002,0.4606,3931.1,3931.0,0.1272]
[1761408467224,0.4606,3931.1,3931.0,6.03908196]
[1761408469834,3.00441725,3931.1,3931.0,3.4952]
[1761408470130,3.00441725,3931.1,3930.9,0.002]
[1761408470131,4.09908196,3931.0,3930.9,0.002]
[1761408470296,2.5440479,3930.8,3930.6,3.425]
[1761408470729,3.00277611,3930.7,3930.6,3.425]
[1761408471092,0.4587,3930.7,3930.6,3.425]
[1761408478152,0.4587,3930.7,3930.6,3.427]
[1761408479942,0.5859,3930.7,3930.6,3.427]
[1761408482562,0.4587,3930.7,3930.6,3.427]
[1761408492340,0.1272,3930.8,3930.6,3.427]
[1761408493436,0.98336369,3931.4,3930.6,4.037447]
[1761408493661,0.1272,3931.1,3930.7,0.50688]
[1761408493903,0.4371,3931.4,3930.7,3.05093771]
[1761408493904,0.1272,3931.2,3930.7,3.05093771]
[1761408494279,0.1272,3931.2,3930.7,3.52443771]
[1761408494597,0.1272,3931.2,3930.8,1.02352804]
[1761408494813,0.4371,3931.4,3930.8,1.02352804]
[1761408495093,0.1272,3931.3,3930.8,1.02352804]
[1761408495597,0.1272,3931.3,3930.9,0.02543946]
[1761408495797,0.4371,3931.8,3931.1,0.50688]
[1761408496002,0.001,3931.4,3931.1,0.50688]
[1761408496187,0.001,3931.4,3931.2,2.54374439]
[1761408496590,0.001,3931.4,3931.3,2.54368783]
[1761408496788,0.001,3931.4,3931.3,3.05056783]
[1761408496992,0.001,3931.4,3931.3,3.52406783]
[1761408497189,0.001,3931.4,3931.3,3.05056783]
[1761408497370,0.001,3931.4,3931.3,3.96112474]
[1761408497772,0.001,3931.4,3931.3,4.43462474]
[1761408497991,0.001,3931.4,3931.3,3.96112474]
[1761408498271,0.001,3931.4,3931.3,4.43462474]
[1761408498472,0.001,3931.4,3931.3,3.96112474]
[1761408498700,0.001,3931.4,3931.3,4.56182474]
[1761408500271,0.001,3931.4,3931.3,7.93882474]
[1761408500801,0.001,3931.4,3931.3,7.46532474]
[1761408502829,0.001,3931.4,3931.3,7.93882474]
[1761408519686,0.001,3931.4,3931.3,9.49402474]
[1761408528069,0.001,3931.4,3931.3,5.64352474]
[1761408528376,0.001,3931.4,3931.3,8.98052474]
[1761408528559,0.001,3931.4,3931.3,9.42062474]
[1761408530984,0.001,3931.4,3931.3,5.64352474]
[1761408531202,0.001,3931.4,3931.3,11.32462474]
[1761408532327,0.001,3931.4,3931.3,10.88452474]
[1761408533104,0.001,3931.4,3931.3,5.64352474]
[1761408533401,0.001,3931.4,3931.3,8.97352474]
[1761408534172,0.001,3931.4,3931.3,5.64352474]
[1761408534402,0.001,3931.4,3931.3,8.97152474]
[1761408534602,0.001,3931.4,3931.3,6.07062474]
[1761408534807,0.001,3931.4,3931.3,9.39862474]
[1761408535508,0.001,3931.4,3931.3,9.83872474]
[1761408536711,0.001,3931.4,3931.3,9.39862474]
[1761408536907,0.4281,3931.4,3931.3,3.09798783]
[1761408537084,0.4281,3931.4,3931.3,6.42298783]
[1761408537288,0.4281,3931.4,3931.3,6.92986783]
[1761408541416,0.001,3931.4,3931.3,6.92986783]
[1761408541614,0.001,3931.4,3931.3,7.87723474]
[1761408542476,0.4281,3931.4,3931.3,6.92986783]
[1761408543719,0.4281,3931.4,3931.3,6.92286783]
[1761408544095,0.4281,3931.4,3931.3,3.60486783]
[1761408544296,0.4281,3931.4,3931.3,6.92286783]
[1761408544681,0.4281,3931.4,3931.3,3.60486783]
[1761408544882,0.4281,3931.4,3931.3,6.92186783]
[1761408546623,0.4281,3931.4,3931.3,6.49476783]
[1761408550721,0.001,3931.4,3931.3,6.49476783]
[1761408550888,0.4281,3931.4,3931.3,6.49476783]
[1761408552725,0.001,3931.4,3931.3,6.49476783]
[1761408554140,0.4281,3931.4,3931.3,6.49476783]
[1761408554703,0.001,3931.4,3931.3,6.49476783]
[1761408557129,0.001,3931.4,3931.3,6.95436783]
[1761408557324,0.001,3931.4,3931.3,7.90418474]
[1761408558412,0.001,3931.4,3931.3,7.44458474]
[1761408560708,0.001,3931.4,3931.3,7.90418474]
[1761408561540,0.001,3931.4,3931.3,7.44458474]
[1761408571644,0.001,3931.4,3931.3,7.90418474]
[1761408573750,0.001,3931.4,3931.3,7.44458474]
[1761408573969,0.001,3931.4,3931.3,9.45938474]
[1761408577672,1e-08,3931.9,3931.8,3.05024436]
[1761408577842,1e-08,3931.9,3931.8,6.6432688]
[1761408578041,1e-08,3931.9,3931.8,7.0713688]
[1761408580630,1e-08,3931.9,3931.8,6.6432688]
[1761408586287,0.22310001,3931.9,3931.8,2.8483888]
[1761408586445,0.64350001,3931.9,3931.8,2.54336436]
[1761408586648,0.64350001,3931.9,3931.8,6.33024436]
[1761408587574,0.64350001,3931.9,3931.8,6.45744436]
[1761408588756,0.64350001,3931.9,3931.8,3.17744436]
[1761408589061,0.22310001,3931.9,3931.8,3.17744436]
[1761408589273,0.64350001,3931.9,3931.8,6.45444436]
[1761408591071,0.64350001,3931.9,3931.8,3.17744436]
[1761408591487,0.64350001,3931.9,3931.8,6.45344436]
[1761408593651,0.64350001,3931.9,3931.8,3.17744436]
[1761408593856,0.64350001,3931.9,3931.8,6.45244436]
[1761408596380,1e-08,3931.9,3931.8,6.45244436]
[1761408597063,0.46140001,3931.9,3931.8,6.45244436]
[1761408598086,1e-08,3931.9,3931.8,6.45244436]
[1761408599304,0.64590001,3931.9,3931.8,6.45244436]
[1761408599679,0.64590001,3931.9,3931.8,6.45444436]
[1761408600300,1e-08,3931.9,3931.8,6.45444436]
[1761408600971,0.17650001,3931.9,3931.8,6.45444436]
[1761408601175,3.63922508,3931.9,3931.8,0.1292]
[1761408601406,4.13054759,3931.9,3931.8,3.047]
[1761408602312,4.13054759,3931.9,3931.8,5.59036436]
[1761408602529,4.13054759,3931.9,3931.8,3.047]
[1761408603610,4.13054759,3931.9,3931.8,5.59036436]
[1761408603908,4.13054759,3931.9,3931.8,3.047]
[1761408604095,4.13054759,3931.9,3931.8,5.59036436]
[1761408604498,4.13054759,3931.9,3931.8,3.047]
[1761408604674,4.13054759,3931.9,3931.8,5.59036436]
[1761408604879,4.13054759,3931.9,3931.8,5.81536436]
[1761408605910,4.13054759,3931.9,3931.8,3.272]
[1761408606341,4.13054759,3931.9,3931.8,5.81536436]
[1761408606644,4.13054759,3931.9,3931.8,3.272]
[1761408610364,4.13054759,3931.9,3931.8,0.002]
[1761408610562,4.13054759,3931.9,3931.8,3.272]
[1761408613788,0.66782252,3931.9,3931.8,3.272]
[1761408613972,0.30370001,3931.9,3931.8,5.81536436]
[1761408614262,0.73130001,3931.9,3931.8,5.81536436]
[1761408615157,0.12720001,3931.9,3931.8,5.81536436]
[1761408615637,0.55270001,3931.9,3931.8,5.81536436]
[1761408615838,0.12720001,3931.9,3931.8,5.81536436]
[1761408617168,1e-08,3931.9,3931.8,5.81536436]
[1761408619562,0.64350001,3931.9,3931.8,5.81536436]
[1761408621146,1e-08,3931.9,3931.8,5.81536436]